bitfinex/quotes_ETHUSD_20260306
["timestamp","ask_amount","ask_price","bid_price","bid_amount"]
[1772815390585,0.46827183,1975.2,1974.4,1.26729152]
[1772815390956,0.46827183,1975.2,1974.4,1.73249115]
[1772815391278,0.46827183,1975.2,1974.4,1.26729303]
[1772815391484,0.46827183,1975.2,1974.4,0.0011]
[1772815391688,0.46827183,1975.0,1974.4,0.0011]
[1772815392978,0.46827183,1975.0,1974.1,5.53188171]
[1772815392979,0.46827183,1975.0,1974.1,0.0011]
[1772815393761,0.46827183,1974.8,1974.1,0.0011]
[1772815394384,0.46827183,1974.8,1973.7,0.0011]
[1772815395189,0.46827183,1974.6,1973.7,0.0011]
[1772815395383,0.46827183,1974.4,1973.7,0.0011]
[1772815396086,0.46827183,1974.2,1973.7,0.0011]
[1772815398192,1.55727183,1974.5,1973.7,0.0011]
[1772815398686,0.46827183,1974.4,1973.7,0.0011]
[1772815398886,0.46827183,1974.7,1973.7,0.46629963]
[1772815399087,1.55727183,1974.7,1973.7,0.46629963]
[1772815400505,1.2660792,1974.6,1973.8,1.73179198]
[1772815401802,2.82328692,1974.7,1973.8,1.73179198]
[1772815401966,1.73428692,1974.7,1973.9,0.46519963]
[1772815402692,2.35497742,1974.8,1974.1,0.46519963]
[1772815402995,1.26586643,1975.0,1974.2,0.46519963]
[1772815403160,1.73407653,1975.1,1974.2,0.46519963]
[1772815403365,0.46827183,1975.0,1974.0,1.26646403]
[1772815403776,0.46827183,1975.0,1974.0,1.73166366]
[1772815403982,0.001,1974.6,1974.1,0.46519963]
[1772815404599,0.001,1974.6,1974.2,1.73153536]
[1772815405077,1.089,1975.2,1974.2,1.73153536]
[1772815405078,0.46827183,1975.3,1974.4,0.46519963]
[1772815405272,1.26660832,1975.4,1974.4,0.46519963]
[1772815405786,0.46827183,1975.2,1974.2,1.26633573]
[1772815405977,0.46827183,1975.2,1974.3,0.46519963]
[1772815406170,1.089,1975.3,1974.3,0.46519963]
[1772815406496,1.26569461,1975.2,1974.4,1.26620745]
[1772815406795,1.26569461,1975.2,1974.4,1.73140708]
[1772815407297,1.26569461,1975.2,1974.5,0.46519963]
[1772815407795,0.46827183,1975.1,1974.4,1.26620745]
[1772815408297,0.46827183,1975.1,1974.4,1.73140708]
[1772815408879,1.26569461,1975.2,1974.4,1.73140708]
[1772815409600,1.26569461,1975.2,1974.5,0.46519963]
[1772815410201,1.73396644,1975.2,1974.4,1.26620745]
[1772815410372,0.46827183,1975.1,1974.4,1.26620745]
[1772815411194,1.26582278,1975.0,1974.3,5.53002945]
[1772815411496,5.06288958,1975.2,1974.4,0.46519963]
[1772815411702,5.53116141,1975.2,1974.4,0.46519963]
[1772815413704,0.46827183,1975.2,1974.5,1.71707531]
[1772815414002,1.26563053,1975.3,1974.6,0.45093199]
[1772815414594,0.46106223,1975.4,1974.6,0.45093199]
[1772815414804,0.001,1975.4,1974.6,0.45093199]
[1772815415005,1.26656724,1975.4,1974.6,0.45093199]
[1772815415504,0.001,1975.1,1974.6,0.45093199]
[1772815416076,0.001,1975.4,1974.8,0.45093199]
[1772815416688,0.001,1975.4,1975.0,0.45093199]
[1772815416982,1.72519333,1976.1,1975.2,0.45093199]
[1772815417802,1.60287077,1976.2,1975.2,0.45093199]
[1772815418009,0.33776998,1976.2,1975.4,0.45093199]
[1772815418306,1.60282582,1976.2,1975.4,0.45093199]
[1772815418893,0.33776998,1976.2,1975.4,0.45093199]
[1772815419087,1e-08,1976.2,1975.5,0.45093199]
[1772815419405,1e-08,1976.2,1975.6,0.45093199]
[1772815420203,1e-08,1976.2,1975.8,0.45093199]
[1772815420584,0.46006224,1976.2,1975.6,1.26541979]
[1772815421005,1e-08,1976.2,1975.7,0.45093199]
[1772815421604,1e-08,1976.2,1975.6,1.26541979]
[1772815421795,1e-08,1976.2,1975.6,1.71635178]
[1772815422805,1e-08,1976.2,1975.7,0.45093199]
[1772815423507,1e-08,1976.2,1975.6,1.26541979]
[1772815424106,1e-08,1976.2,1975.6,1.71635178]
[1772815424306,1e-08,1976.2,1975.7,0.45093199]
[1772815426409,1e-08,1976.2,1975.8,1.71624224]
[1772815426604,1e-08,1976.2,1975.9,0.45093199]
[1772815426809,1e-08,1976.2,1975.7,1.26532647]
[1772815427192,1e-08,1976.2,1975.7,1.71625846]
[1772815427407,0.001,1976.1,1975.8,0.45093199]
[1772815427609,1e-08,1976.2,1975.8,0.45093199]
[1772815427914,1e-08,1976.2,1975.5,0.875]
[1772815428094,1e-08,1976.2,1975.2,1.71657061]
[1772815428784,0.46006223,1976.1,1975.2,1.71657061]
[1772815429711,0.46006223,1976.1,1975.1,2.14270758]
[1772815430699,0.46006223,1975.9,1975.1,2.14273031]
[1772815431002,0.46006223,1975.9,1975.1,0.877]
[1772815431317,0.46006223,1975.7,1974.8,0.24885603]
[1772815431500,0.46006223,1975.7,1974.8,1.514802]
[1772815431810,0.46006223,1975.7,1974.8,0.24885603]
[1772815432014,0.46006223,1975.7,1974.8,1.51479606]
[1772815432392,0.46006223,1975.7,1974.8,1.96572805]
[1772815432813,1.72547031,1975.7,1974.9,0.45093199]
[1772815433020,1.26540808,1975.7,1974.9,0.45093199]
[1772815433514,5.5206152,1976.1,1975.1,0.45093199]
[1772815433720,1.26511816,1976.1,1975.3,0.45093199]
[1772815433907,1.2651053,1976.2,1975.3,0.45093199]
[1772815434100,1.26506217,1976.2,1975.3,0.45093199]
[1772815434298,1e-08,1976.2,1975.3,0.45093199]
[1772815434504,1e-08,1976.2,1975.5,0.45093199]
[1772815434814,1.26505524,1976.2,1975.5,0.45093199]
[1772815435220,1.26505524,1976.2,1975.7,0.46219183]
[1772815435221,1e-08,1976.2,1975.7,0.46219183]
[1772815436739,1e-08,1976.2,1975.8,0.46219183]
[1772815437224,1e-08,1976.2,1975.9,1.26524621]
[1772815437420,1e-08,1976.2,1975.8,5.52317669]
[1772815437421,1e-08,1976.2,1975.8,1.72745085]
[1772815437789,1e-08,1976.2,1975.2,0.46219183]
[1772815438422,1e-08,1976.2,1975.4,0.46219183]
[1772815439396,1e-08,1976.2,1975.5,1.72769423]
[1772815440400,0.001,1976.1,1975.5,1.72769423]
[1772815440814,0.48905943,1976.1,1975.3,1.26668306]
[1772815441200,0.48905943,1976.1,1975.3,0.0011]
[1772815441406,0.48805943,1975.9,1975.3,0.0011]
[1772815441625,0.48608024,1975.8,1975.0,0.0011]
[1772815443408,1.75145453,1975.7,1975.0,0.0011]
[1772815443627,0.48608024,1975.6,1975.0,0.0011]
[1772815444422,1.26537429,1975.7,1975.0,0.0011]
[1772815444608,1.75145453,1975.7,1975.0,0.0011]
[1772815445029,0.48608024,1975.6,1975.0,0.0011]
[1772815445707,5.06135191,1975.8,1975.0,0.0011]
[1772815445915,5.54743215,1975.8,1975.0,0.0011]
[1772815446234,0.48608024,1975.7,1975.0,0.0011]
[1772815447335,0.48608024,1975.7,1974.8,0.24885603]
[1772815447716,0.48608024,1975.5,1974.8,0.24885603]
[1772815449224,1.26543834,1975.6,1974.8,0.47336613]
[1772815449533,1.75151858,1975.6,1974.7,1.26598492]
[1772815449732,1.75151858,1975.6,1974.6,5.06428308]
[1772815449733,1.26556646,1975.4,1974.6,5.06428308]
[1772815450435,1.26556646,1975.4,1974.7,0.47336613]
[1772815450636,1.55808024,1975.8,1974.7,0.47336613]
[1772815450637,5.06152559,1975.7,1974.7,0.47336613]
[1772815450812,1.26542503,1975.7,1974.7,0.47336613]
[1772815451010,1.75150527,1975.7,1974.7,0.47336613]
[1772815451343,0.48608024,1975.6,1974.7,0.47336613]
[1772815451515,1.26542503,1975.7,1974.7,0.47336613]
[1772815451712,5.06149719,1975.8,1974.9,0.47336613]
[1772815452240,5.54757743,1975.8,1974.9,0.47336613]
[1772815453035,0.48608024,1975.7,1974.8,1.26595098]
[1772815453734,1.26543834,1975.6,1974.8,0.0011]
[1772815454343,1.26543834,1975.6,1974.8,0.47446613]
[1772815455619,0.48608024,1975.5,1974.8,0.0011]
[1772815456338,1.26556646,1975.4,1974.8,0.0011]
[1772815457241,1.7516467,1975.4,1974.8,0.0011]
[1772815457439,0.48608024,1975.3,1974.8,0.0011]
[1772815458540,0.48608024,1975.1,1974.5,0.0011]
[1772815458844,1.26566947,1975.3,1974.5,1.74056388]
[1772815459045,1.75174971,1975.3,1974.5,1.74056388]
[1772815459218,0.48608024,1975.2,1974.5,1.26723666]
[1772815459718,0.48608024,1975.2,1974.5,0.0011]
[1772815460717,1.26575869,1975.1,1974.5,0.0011]
[1772815460917,1.26569461,1975.2,1974.5,0.47446613]
[1772815462175,0.48608024,1975.1,1974.5,0.0011]
[1772815463048,1.26582278,1975.0,1974.5,0.0011]
[1772815463360,1.21582278,1975.0,1974.5,0.0011]
[1772815464029,0.48608024,1974.8,1974.4,0.0011]
[1772815464229,0.48608024,1974.8,1974.2,0.0011]
[1772815465243,0.48608024,1974.6,1974.2,0.0011]
[1772815466965,0.48608024,1974.6,1974.5,0.0011]
[1772815467144,1.75222356,1974.5,1974.3,0.0011]
[1772815467345,1.082,1974.4,1974.3,0.0011]
[1772815468243,0.48608024,1974.3,1973.8,0.0011]
[1772815469370,1.26633573,1974.2,1973.8,0.0011]
[1772815473683,5.06534292,1974.3,1973.8,0.0011]
[1772815474279,5.56414137,1974.3,1973.5,0.48322995]
[1772815474479,0.49879845,1974.2,1973.5,1.2678711]
[1772815474781,0.49879845,1974.2,1973.5,1.75000105]
[1772815475080,2.8470488,1974.4,1973.6,0.48212995]
[1772815475862,5.06482982,1974.5,1973.8,0.48212995]
[1772815475863,1.26614666,1974.5,1973.8,0.48212995]
[1772815476064,0.49879845,1974.7,1973.8,0.48212995]
[1772815476065,1.2660458,1974.7,1973.8,0.48212995]
[1772815476264,0.49879845,1974.6,1973.8,0.48212995]
[1772815476773,2.85066657,1975.0,1973.8,0.48212995]
[1772815477181,0.49879845,1974.9,1973.8,0.48212995]
[1772815478463,2.35295098,1974.8,1974.0,0.48212995]
[1772815478663,2.85174943,1974.8,1974.0,0.48212995]
[1772815479291,0.49879845,1974.7,1973.8,1.7486795]
[1772815479596,0.49879845,1974.7,1973.7,5.06755475]
[1772815479597,0.49879845,1974.7,1973.7,1.26774618]
[1772815479774,0.49879845,1974.7,1973.7,0.0011]
[1772815480092,0.49879845,1974.7,1973.7,1.2677474]
[1772815480881,0.49879845,1974.5,1973.7,0.0011]
[1772815482989,1.7650059,1974.4,1973.7,0.48322995]
[1772815483167,2.8530059,1974.4,1973.7,0.48322995]
[1772815484176,1.26618695,1974.5,1973.7,0.48322995]
[1772815484492,1.26610661,1974.6,1973.7,0.48322995]
[1772815484880,2.35502311,1974.7,1973.7,0.48322995]
[1772815485191,0.49979845,1974.9,1973.7,0.48322995]
[1772815485192,0.001,1974.9,1974.1,0.48212995]
[1772815485493,1.26689464,1974.9,1974.3,0.48212995]
[1772815486271,0.001,1974.9,1974.3,0.48212995]
[1772815486591,1.26688756,1974.9,1974.3,0.48212995]
[1772815487000,1.26688756,1974.9,1974.4,1.26620745]
[1772815487497,1.26688756,1974.9,1974.3,1.74837926]
[1772815487675,1.76568601,1974.9,1974.2,1.26633036]
[1772815487884,1.76568601,1974.9,1974.1,1.26637529]
[1772815489288,1.76568601,1974.9,1974.1,1.74850524]
[1772815489874,0.49879845,1974.8,1974.1,0.48212995]
[1772815490084,0.49979845,1974.8,1974.1,0.48212995]
[1772815490289,0.001,1974.8,1974.1,0.48212995]
[1772815492002,0.001,1974.9,1974.4,0.48212995]
[1772815493179,1.26689105,1974.9,1974.4,0.48212995]
[1772815493381,1.26689105,1974.9,1974.2,1.74846568]
[1772815495475,0.001,1974.9,1974.2,1.74846568]
[1772815495680,5.03397383,1975.0,1974.3,0.47849715]
[1772815496084,1.2657593,1975.1,1974.3,0.47849715]
[1772815497606,1.2657593,1975.1,1974.4,1.26620745]
[1772815497902,1.2657593,1975.1,1974.4,1.7447046]
[1772815498410,1.26673879,1975.2,1974.5,0.47849715]
[1772815499399,0.001,1975.2,1974.5,0.47849715]
[1772815499706,0.001,1975.2,1974.7,0.47849715]
[1772815500505,0.001,1975.2,1974.4,1.744649]
[1772815500801,0.49460096,1975.2,1974.4,1.744649]
[1772815501506,0.001,1975.2,1974.5,0.47849715]
[1772815501808,0.001,1975.2,1974.7,0.45129929]
[1772815502003,0.001,1975.2,1974.5,1.71739741]
[1772815502204,0.49598276,1975.2,1974.5,1.71740746]
[1772815502410,0.001,1975.2,1974.6,0.45129929]
[1772815502778,0.001,1975.2,1974.4,5.06461179]
[1772815503134,0.001,1975.2,1974.5,1.26613113]
[1772815503409,0.001,1975.2,1974.6,0.45129929]
[1772815503920,0.001,1975.2,1974.4,1.71750674]
[1772815504284,0.001,1975.2,1974.4,1.26620745]
[1772815504782,0.001,1975.2,1974.5,0.45129929]
[1772815505802,0.001,1975.2,1974.7,0.45129929]
[1772815507816,0.001,1975.2,1974.8,1.71725027]
[1772815508613,0.001,1975.2,1974.9,0.45129929]
[1772815508824,1.26642121,1975.7,1974.9,0.45129929]
[1772815508992,0.001,1975.7,1974.9,0.45129929]
[1772815509315,1.26639229,1975.7,1974.9,0.45129929]
[1772815509688,0.001,1975.7,1974.9,0.45129929]
[1772815509890,0.001,1975.7,1975.1,0.45129929]
[1772815511912,0.001,1975.7,1975.3,0.45129929]
[1772815512243,0.001,1976.1,1975.4,0.45129929]
[1772815513433,1.7611396,1976.1,1975.3,0.881]
[1772815513716,1.26615684,1976.1,1975.4,0.45129929]
[1772815513929,0.001,1976.1,1975.5,1.2655024]
[1772815514128,0.001,1975.6,1975.5,1.2655024]
[1772815514289,0.001,1976.1,1975.5,1.71680169]
[1772815514504,0.001,1976.1,1975.6,0.45129929]
[1772815516030,0.001,1976.1,1975.7,1.26537429]
[1772815516233,0.001,1976.1,1975.7,1.71667358]
[1772815516545,0.001,1976.1,1975.4,5.51356419]
[1772815517509,0.001,1976.1,1975.5,0.45129929]
[1772815517709,1.26489676,1976.5,1975.5,0.45129929]
[1772815518036,1.26489676,1976.5,1975.7,0.45129929]
[1772815518437,0.49498276,1976.4,1975.7,0.45129929]
[1772815518640,0.49498276,1976.4,1975.5,1.71675747]
[1772815519639,0.49498276,1976.4,1975.6,0.45129929]
[1772815519938,1.26489676,1976.5,1975.6,0.45129929]
[1772815520234,1.26489676,1976.5,1975.6,1.26538759]
[1772815520235,0.49498276,1976.4,1975.6,1.26538759]
[1772815522533,1.26499013,1976.3,1975.6,1.26538759]
[1772815522841,1.26499013,1976.3,1975.6,1.71668688]
[1772815523132,1.75997289,1976.3,1975.6,1.71668688]
[1772815524210,1.26497319,1976.4,1975.7,0.45129929]
[1772815524636,1.26489672,1976.5,1975.9,0.45129929]
[1772815525009,5.059052,1976.7,1975.9,0.45129929]
[1772815525209,1.26473415,1976.7,1975.9,0.45129929]
[1772815525565,1.75968692,1976.8,1975.9,0.45129929]
[1772815525915,1.26470416,1976.8,1975.9,0.45129929]
[1772815526110,0.001,1976.4,1975.9,0.45129929]
[1772815526945,0.001,1976.4,1976.0,1.26518218]
[1772815527641,0.001,1976.4,1975.9,1.71649444]
[1772815529419,0.49598276,1976.4,1975.8,1.26526774]
[1772815530234,0.49598276,1976.4,1975.8,1.71656703]
[1772815530565,0.001,1976.4,1975.9,0.45129929]
[1772815531022,0.001,1976.4,1976.1,0.45129929]
[1772815533219,0.001,1976.4,1976.2,1.72442927]
[1772815533420,1.26467017,1976.9,1976.3,0.45937513]
[1772815533947,1.26440945,1977.3,1976.3,0.45937513]
[1772815535053,1.26440945,1977.3,1976.2,1.26505414]
[1772815535054,0.47494162,1977.2,1976.2,1.26505414]
[1772815535416,0.47494162,1977.0,1976.2,1.72442927]
[1772815537846,0.47494162,1976.8,1976.1,2.15211389]
[1772815538156,0.47494162,1976.7,1975.8,1.26529544]
[1772815538524,0.47494162,1976.7,1976.0,0.0011]
[1772815539118,0.47494162,1976.7,1975.9,0.0011]
[1772815539744,0.42494162,1976.7,1975.9,0.0011]
[1772815539947,0.47494162,1976.5,1975.9,0.0011]
[1772815541747,1.26479813,1976.6,1975.7,0.0011]
[1772815541748,0.47494162,1976.3,1975.7,0.0011]
[1772815541925,0.47494162,1976.3,1975.0,0.2172454]
[1772815541926,0.47494162,1976.1,1975.0,1.48305803]
[1772815542343,0.47494162,1976.1,1975.1,0.45937513]
[1772815542657,0.47494162,1976.1,1975.0,1.48306466]
[1772815542829,0.47494162,1976.1,1975.0,0.2172454]
[1772815543221,0.47494162,1976.1,1975.0,1e-08]
[1772815543829,0.47494162,1975.7,1975.0,1e-08]
[1772815544126,2.50368595,1975.8,1974.6,1e-08]
[1772815544127,0.47494162,1975.5,1974.6,1e-08]
[1772815544451,1.085,1975.4,1974.6,1.2660433]
[1772815544655,4.06362757,1975.8,1974.7,0.45937513]
[1772815545448,0.47494162,1975.7,1974.7,0.45937513]
[1772815546548,1.26537429,1975.7,1974.9,0.45937513]
[1772815548060,1.55994162,1976.0,1974.9,0.45937513]
[1772815548271,2.82515424,1976.0,1974.9,0.45937513]
[1772815548932,2.82515424,1976.0,1975.1,0.45937513]
[1772815549140,1.26521262,1976.0,1975.1,0.45937513]
[1772815549945,1.74015424,1976.0,1975.1,0.45937513]
[1772815550150,0.47494162,1975.9,1975.1,0.45937513]
[1772815550864,1.26511816,1976.1,1975.3,0.45937513]
[1772815551183,1.2650839,1976.2,1975.3,0.45937513]
[1772815552050,1.26603922,1976.3,1975.3,0.45937513]
[1772815552249,0.001,1976.3,1975.3,0.45937513]
[1772815552572,0.001,1976.3,1975.5,0.45937513]
[1772815552751,0.001,1976.3,1975.7,0.45937513]
[1772815553157,0.001,1976.3,1975.8,1.26531025]
[1772815553673,0.001,1976.3,1975.9,0.45937513]
[1772815555748,0.001,1976.3,1975.9,1.72462089]
[1772815556266,0.001,1976.3,1975.6,0.47618547]
[1772815557296,0.46080971,1976.3,1975.5,5.06196536]
[1772815557582,0.001,1976.3,1975.6,0.47618547]
[1772815557964,0.001,1976.3,1975.7,1.74155976]
[1772815558562,0.001,1976.3,1975.8,0.47618547]
[1772815558964,0.001,1976.3,1975.7,1.26537429]
[1772815559961,0.001,1976.3,1975.7,1.74155976]
[1772815561889,0.001,1976.3,1976.0,0.48003961]
[1772815562089,2.34965566,1976.9,1976.0,0.48003961]
[1772815562385,2.34965566,1976.9,1976.1,0.48003961]
[1772815563375,0.001,1976.2,1976.1,0.48003961]
[1772815563595,0.45833726,1976.8,1976.0,0.89]
[1772815563972,0.001,1976.9,1976.2,0.48003961]
[1772815564175,1.26562397,1976.9,1976.2,0.48003961]
[1772815565266,0.001,1976.9,1976.2,0.48003961]
[1772815565463,1.26560928,1976.9,1976.2,0.48003961]
[1772815565785,0.001,1976.9,1976.2,0.48003961]
[1772815566089,0.001,1976.9,1976.4,0.48003961]
[1772815567990,0.001,1976.9,1976.6,0.48003961]
[1772815568164,1.61809378,1977.5,1976.6,0.48003961]
[1772815568363,1.61809525,1977.5,1976.6,0.48003961]
[1772815569699,1.26396315,1978.0,1977.0,0.48003961]
[1772815569992,0.36259255,1978.9,1977.4,0.48003961]
[1772815569993,0.45833726,1978.6,1977.4,0.48003961]
[1772815570191,1.26339195,1978.8,1977.4,0.48003961]
[1772815570192,0.45833726,1978.7,1977.4,0.48003961]
[1772815572183,1.72185692,1978.6,1977.6,0.48003961]
[1772815572386,0.45833726,1978.5,1977.6,0.48003961]
[1772815572603,0.45833726,1978.5,1977.3,0.48003961]
[1772815572767,0.45833726,1978.5,1977.3,1.74438613]
[1772815573800,0.45833726,1978.5,1977.4,0.48003961]
[1772815574296,5.05393853,1978.7,1977.6,0.48003961]
[1772815574804,0.45833726,1978.6,1977.6,0.48003961]
[1772815574995,5.05393853,1978.7,1977.6,0.48003961]
[1772815575198,0.001,1978.6,1977.6,0.48003961]
[1772815575785,0.001,1978.6,1977.7,0.48003961]
[1772815576210,0.001,1978.6,1977.9,0.48003961]
[1772815577828,0.001,1978.6,1977.8,1.26403074]
[1772815577829,0.36259255,1978.9,1978.3,0.48003961]
[1772815578031,1.26320044,1979.1,1978.4,0.48003961]
[1772815578245,0.45833726,1979.2,1978.5,1.26358352]
[1772815579489,0.45833726,1979.2,1978.5,1.74362313]
[1772815580085,0.45833726,1979.2,1978.5,0.48003961]
[1772815580318,1.26320044,1979.1,1978.6,0.48003961]
[1772815580522,1.72134625,1979.4,1978.6,0.48003961]
[1772815581128,0.45833726,1979.3,1978.5,0.48003961]
[1772815581292,1.26300899,1979.4,1978.5,0.48003961]
[1772815582259,1.72134625,1979.4,1978.5,0.48003961]
[1772815582418,0.45833726,1979.3,1978.1,1.26380872]
[1772815582622,0.45833726,1979.3,1978.0,0.48003961]
[1772815583023,3.70555318,1979.4,1977.8,1.48617518]
[1772815583024,0.45833726,1978.7,1977.8,0.22215333]
[1772815583305,0.45833726,1978.6,1977.8,0.22215333]
[1772815584238,0.45833726,1978.6,1977.3,0.48003961]
[1772815584239,1.26358352,1978.5,1977.3,1.74438314]
[1772815584440,0.45833726,1978.4,1977.3,1.74438314]
[1772815585721,0.45833726,1978.4,1977.2,5.05756765]
[1772815585722,0.45833726,1978.4,1977.1,1.29031135]
[1772815586342,0.45833726,1978.2,1977.1,1.29031135]
[1772815586542,1.076,1978.1,1977.2,0.48003961]
[1772815586753,1.26371126,1978.3,1977.2,0.48003961]
[1772815586952,1.26362678,1978.5,1977.4,0.48003961]
[1772815587114,2.33950591,1978.7,1977.6,0.48003961]
[1772815588746,2.33950591,1978.7,1977.8,0.48003961]
[1772815590338,1.26350591,1978.7,1977.8,0.48003961]
[1772815590533,1.26332811,1979.0,1977.9,1.26396683]
[1772815590739,1.26332811,1979.0,1978.0,0.48003961]
[1772815591338,1.26424521,1979.1,1978.1,0.891]
[1772815591528,1.26424521,1979.1,1978.2,0.48003961]
[1772815591735,0.49582743,1979.0,1978.0,0.47811838]
[1772815593036,0.49582743,1978.8,1977.8,0.891]
[1772815593341,0.49582743,1978.8,1977.8,5.53406906]
[1772815593537,0.49582743,1978.8,1977.9,0.47811838]
[1772815594248,1.26332811,1978.9,1977.9,0.47811838]
[1772815594833,1.75915554,1978.9,1977.9,0.47811838]
[1772815595460,1.26332811,1978.9,1978.1,0.47811838]
[1772815595653,1.26420183,1979.1,1978.2,0.47811838]
[1772815596037,0.001,1979.1,1978.2,0.47811838]
[1772815596333,1.264204,1979.1,1978.2,0.47811838]
[1772815597556,0.001,1979.1,1978.3,1.26371126]
[1772815597757,0.001,1979.1,1978.4,0.47811838]
[1772815598364,0.001,1979.1,1978.3,1.26371126]
[1772815599972,0.001,1979.1,1978.3,1.74182964]
[1772815600157,0.001,1979.1,1978.4,0.47811838]
[1772815602070,0.001,1979.1,1978.5,1.7417019]
[1772815602571,0.001,1979.1,1978.5,1.26358352]
[1772815602753,0.001,1979.1,1978.5,1.7417019]
[1772815603468,0.001,1979.1,1978.5,0.47811838]
[1772815603864,0.001,1979.1,1978.4,1.26359951]
[1772815604066,0.001,1979.1,1978.3,5.94671847]
[1772815604067,1.26326427,1979.0,1978.2,1.74189352]
[1772815604268,0.49582743,1978.9,1977.7,1.26404947]
[1772815604468,0.49582743,1978.9,1977.6,0.47811838]
[1772815604469,0.49582743,1978.9,1977.9,1.26506155]
[1772815604772,0.49582743,1978.9,1977.9,0.0011]
[1772815605347,0.49582743,1978.8,1977.9,0.0011]
[1772815605748,0.49582743,1978.8,1977.4,5.94604203]
[1772815605749,0.49582743,1978.8,1977.4,1.2642669]
[1772815606052,0.49582743,1978.8,1977.3,1.7424359]
[1772815606254,0.49582743,1978.6,1977.3,0.47811838]
[1772815606457,0.49582743,1978.5,1977.2,0.27658412]
[1772815606671,0.49582743,1978.3,1977.2,0.27658412]
[1772815607058,0.49582743,1978.3,1977.2,1.54099675]
[1772815607247,0.49582743,1978.3,1977.2,1.5409898]
[1772815607766,0.49582743,1978.3,1977.2,0.27658412]
[1772815607955,0.49582743,1978.3,1977.2,1.54099542]
[1772815608155,1.26377514,1978.2,1977.2,1.54099542]
[1772815608354,0.49582743,1978.1,1977.2,1.54099542]
[1772815608870,0.49582743,1978.1,1977.2,0.27658412]
[1772815609769,0.49582743,1978.1,1977.2,1.54098296]
[1772815610470,1.75973036,1978.0,1977.2,1.54099252]
[1772815610660,0.49582743,1977.9,1977.2,1.54099053]
[1772815610850,1.26387811,1978.1,1977.3,0.47811838]
[1772815611054,0.065536,1978.8,1977.3,0.47811838]
[1772815611055,1.75953869,1978.4,1977.3,0.47811838]
[1772815612886,0.49582743,1978.3,1977.3,0.47811838]
[1772815613169,0.49582743,1978.3,1977.3,1.74244777]
[1772815613348,0.49582743,1978.3,1977.3,1.74354777]
[1772815613548,0.49682743,1978.3,1977.3,1.74354777]
[1772815615261,1.26377514,1978.2,1977.4,0.48631539]
[1772815617274,1.26474036,1978.3,1977.6,0.48631539]
[1772815617754,0.48105093,1978.2,1977.3,1.26539967]
[1772815618072,1.26474036,1978.3,1977.4,0.48631539]
[1772815618983,1.26474036,1978.3,1977.3,1.26539967]
[1772815618984,0.48105093,1978.2,1977.3,0.0011]
[1772815619285,0.48105093,1978.2,1977.3,1.26544844]
[1772815619592,1.74488996,1978.1,1977.3,0.0011]
[1772815619949,1.74488996,1978.1,1977.3,0.48741539]
[1772815620175,0.48105093,1978.0,1977.3,0.0011]
[1772815620582,0.48105093,1977.8,1977.3,0.0011]
[1772815621064,0.48105093,1977.8,1977.2,0.0011]
[1772815621462,1.74514558,1977.7,1977.2,0.0011]
[1772815621661,0.48105093,1977.6,1977.2,0.0011]
[1772815621862,0.48005762,1977.5,1977.2,0.0011]
[1772815622061,0.48005762,1977.2,1976.1,3.19104227]
[1772815622253,0.48005762,1977.2,1976.1,1.75904913]
[1772815622454,0.48005762,1977.2,1976.1,0.49395638]
[1772815622659,0.48005762,1977.2,1976.1,1.75901266]
[1772815623373,0.48005762,1977.2,1976.1,0.49395638]
[1772815623574,1.74453589,1977.1,1976.1,0.49395638]
[1772815623764,1.74453589,1977.1,1976.1,1.75907016]
[1772815623961,0.48005762,1977.0,1976.1,1.26511378]
[1772815624167,0.48005762,1976.9,1976.0,0.0011]
[1772815624379,1.74453589,1977.1,1976.2,1.51591704]
[1772815624577,1.075,1977.0,1976.2,0.25087329]
[1772815624978,0.48005762,1976.9,1976.2,0.25087329]
[1772815626260,1.26467017,1976.8,1976.2,0.25087329]
[1772815626874,1.26467017,1976.8,1976.2,1.51592586]
[1772815627189,1.26467017,1976.8,1976.3,0.0011]
[1772815627496,0.48005762,1976.7,1976.3,0.0011]
[1772815627658,1.26467017,1976.8,1976.3,0.0011]
[1772815627864,1.25126435,1976.8,1976.3,0.0011]
[1772815628263,5.05868069,1976.9,1976.3,0.0011]
[1772815628463,1.075,1977.0,1976.3,0.49505638]
[1772815628789,1.26552164,1977.1,1976.4,0.49395638]
[1772815629894,1.26549135,1977.1,1976.4,0.49395638]
[1772815630392,0.001,1977.1,1976.6,0.49395638]
[1772815630962,2.33933678,1977.4,1976.6,0.49395638]
[1772815631381,2.33929367,1977.4,1976.6,0.49395638]
[1772815631579,1.26403074,1977.8,1976.6,0.49395638]
[1772815632590,1.26403074,1977.8,1976.8,0.49395638]
[1772815634464,1.26403074,1977.8,1977.0,0.49395638]
[1772815636570,2.6860882,1977.9,1977.2,0.49395638]
[1772815637900,0.34610518,1977.9,1977.2,0.49395638]
[1772815638197,1.61007552,1977.9,1977.2,0.49395638]
[1772815638673,0.34610518,1977.9,1977.4,0.49395638]
[1772815639100,0.001,1977.7,1977.4,0.49395638]
[1772815639894,0.001,1977.7,1976.9,1.38695638]
[1772815640207,0.001,1977.7,1976.9,0.49395638]
[1772815641006,0.001,1977.7,1977.1,0.49395638]
[1772815642378,0.001,1977.7,1976.8,5.55260421]
[1772815642578,0.48105762,1977.7,1976.8,1.75862655]
[1772815642803,0.48005762,1977.6,1976.8,0.49395638]
[1772815643007,1.74428012,1977.5,1976.6,1.26474724]
[1772815643307,0.48005762,1977.4,1976.6,1.26474724]
[1772815643508,0.48005762,1977.4,1976.5,5.55328343]
[1772815643509,0.48005762,1977.4,1976.5,1.75881455]
[1772815643712,0.48005762,1977.4,1976.5,0.49395638]
[1772815644073,0.48005762,1977.4,1976.3,2.57832734]
[1772815644507,0.48005762,1977.4,1976.3,1.26608715]
[1772815644708,0.48005762,1977.4,1976.3,0.0011]
[1772815644911,1.26454223,1977.0,1976.3,0.0011]
[1772815645078,0.48005762,1976.8,1976.0,0.0011]
[1772815645278,0.48005762,1976.8,1976.0,1.26627702]
[1772815646518,1.08,1976.9,1976.1,0.49395638]
[1772815646880,1.26454223,1977.0,1976.2,1.75901052]
[1772815647079,1.26454223,1977.0,1976.2,0.49395638]
[1772815647311,0.48005762,1976.9,1976.0,1.26622679]
[1772815647873,0.48005762,1976.9,1976.0,0.0011]
[1772815648300,0.48005762,1976.9,1976.0,1.26626664]
[1772815648504,1.74459985,1977.0,1976.1,0.49395638]
[1772815649490,0.48005762,1976.9,1976.1,0.49395638]
[1772815649905,0.48005762,1976.9,1976.0,0.0011]
[1772815651421,0.48005762,1976.7,1976.2,0.0011]
[1772815651621,1.56105762,1976.6,1976.2,0.0011]
[1772815652640,1.26467017,1976.8,1976.2,0.49824905]